Cogmind - Beta 16 @@@ ROGUE MODE // 2025.10.26 @ 05:52:46 Player: shapeshifter Result: Destroyed by W6-ECL(x) with Makeshift Spear Performance ------------- Evolutions (1) 500 Regions Visited (7) 1400 Robots Destroyed (93) 465 Value Destroyed (2729) 2729 Prototype IDs (6) 120 Alien Tech Used (0) 0 Bonus (1049) 1049 TOTAL SCORE: 6263 Bonus ------- High Alert Combat Kills 137 Follower Combat Kills 212 Entered Garrisons 200 Used RIF Installer 500 Cogmind --------- Core Integrity 0/400 Matter 275/300 Energy 265/265 System Corruption 0% Temperature Cool (0) Movement Treading (160) Location -9/Scraptown Parts ------- > --- POWER (1) -------- Improved Ion Engine > --- PROPULSION (2) --- Light Treads Light Treads > --- UTILITY (3) ------ Improved Cooling System Large Storage Unit Light Armor Plating > --- WEAPON (3) ------- Advanced Beam Cannon Heavy Pick > --- INVENTORY (15) --- Fission Core Light Treads High-capacity Storage Unit Experimental Sensor Array Phase Shifter Authchip [Weapon] Relay Coupler [Grunt] (27) Relay Coupler [Sentry] (31) Relay Coupler [Specialist] (29) Relay Coupler [Hunter] (24) Proton Cannon Proton Missile Launcher Improved Proton Missile Launcher CPS Tube (2) CPS Tube (2) Peak State ------------ > --- POWER ------------ Improved Ion Engine > --- PROPULSION ------- Light Treads Light Treads > --- UTILITY ---------- Improved Cooling System High-capacity Storage Unit Light Armor Plating > --- WEAPON ----------- Proton Cannon Advanced Beam Cannon Heavy Pick > --- INVENTORY -------- Fission Core Light Treads Advanced Heat Sink Experimental Sensor Array Improved Terrain Scan Processor Phase Shifter Authchip [Weapon] Relay Coupler [NC] Relay Coupler [NC] Relay Coupler [Grunt] Relay Coupler [Brawler] Relay Coupler [Duelist] Relay Coupler [Sentry] Relay Coupler [Specialist] Relay Coupler [Hunter] Advanced Beam Cannon Proton Missile Launcher Improved Proton Missile Launcher CPS Tube CPS Tube [Rating: 30] Favorites ----------- Power Improved Ion Engine Engine Improved Ion Engine Propulsion Light Treads Treads Light Treads Utility Light Armor Plating Device Improved Heat Sink Storage High-capacity Storage Unit Protection Light Armor Plating Weapon Advanced Beam Cannon Energy Gun Medium Laser Energy Cannon Advanced Beam Cannon Ballistic Gun Light Assault Rifle Launcher Proton Missile Launcher Special Weapon CPS Tube Piercing Weapon Heavy Pick Build | -11 -10 -10 -9 -9 -9 -9 -9 ------- Run | Yrd Mat Min Mat Sto Gar Rec Scr Slots Evolved 2 | . . . 2 . . . . Power . | . . . . . . . . Propulsion . | . . . . . . . . Utility 1 | . . . 1 . . . . Weapon 1 | . . . 1 . . . . Parts Attached 67 | 7 1 8 9 21 13 2 6 Power 8 | 1 1 1 1 2 2 . . Engine 8 | 1 1 1 1 2 2 . . Core . | . . . . . . . . Reactor . | . . . . . . . . Propulsion 17 | 2 . 1 1 7 4 2 . Treads 17 | 2 . 1 1 7 4 2 . Leg . | . . . . . . . . Wheel . | . . . . . . . . Hover . | . . . . . . . . Flight . | . . . . . . . . Utility 20 | 2 . 3 1 8 4 . 2 Device 12 | 1 . 2 . 5 3 . 1 Storage 5 | 1 . 1 . 2 . . 1 Processor . | . . . . . . . . Hackware . | . . . . . . . . Protection 3 | . . . 1 1 1 . . Artifact . | . . . . . . . . Weapon 22 | 2 . 3 6 4 3 . 4 Energy Gun 2 | 2 . . . . . . . Energy Cannon 7 | . . . 1 2 3 . 1 Ballistic Gun 10 | . . 3 5 2 . . . Ballistic Cannon . | . . . . . . . . Launcher 1 | . . . . . . . 1 Special Weapon 1 | . . . . . . . 1 Impact Weapon . | . . . . . . . . Slashing Weapon . | . . . . . . . . Piercing Weapon 1 | . . . . . . . 1 Special Melee Weapon . | . . . . . . . . Unidentified Prototypes 2 | . . 1 1 . . . . Parts Lost 14 | . . 2 1 8 2 . 1 Power 2 | . . 1 . . 1 . . Propulsion 3 | . . . 1 2 . . . Utility 3 | . . . . 2 1 . . Weapon 6 | . . 1 . 4 . . 1 Highest Loss Streak 5 | . . 2 1 5 2 . 1 To Critical Strikes 1 | . . . . 1 . . . Average Backups 14 | 4 7 7 7 7 15 19 19 Power . | . 1 . . . . 1 1 Propulsion 1 | 1 2 2 2 1 1 2 1 Utility 9 | 1 3 4 1 1 11 15 12 Weapon 2 | 1 . . 4 4 2 1 2 Tool/Special . | . . . . . . . . Unused Backups 39 | . 2 2 2 2 4 2 25 Power 2 | . . . . . . . 2 Propulsion 3 | . . . . 2 . . 1 Utility 26 | . 1 2 1 . 4 2 16 Weapon 6 | . 1 . 1 . . . 4 Tool/Special 2 | . . . . . . . 2 Average Slot Usage (%) 97 | . 99 98 93 92 97 96 99 Engine 11 | . 14 13 11 11 9 11 11 Treads 22 | . 28 28 16 21 22 22 22 Device 12 | . 14 14 11 17 18 11 11 Storage 11 | . 14 14 11 11 11 11 11 Protection 7 | . . . 10 2 2 11 11 Energy Gun 4 | . 27 21 . . . . . Energy Cannon 21 | . . . . 9 33 30 30 Ballistic Gun 4 | . . 5 33 19 . . . Peak Build Rating 30 | 8 8 16 15 20 25 23 30 Average Rating 20 | 5 7 8 13 15 22 22 27 On Entrance 12 | . 8 8 10 15 20 23 15 Avg Prop Armor Cover (%) . | . . . . . . . . Naked Turns . | . . . . . . . . Heaviest Build 68 | 14 14 14 21 61 63 63 68 Greatest Support 40 | 40 40 40 40 40 40 40 40 Greatest Overweight (x) 1 | . . . 1 1 1 1 1 Average Overweight (x) . | . . . . . . 1 . Largest Inventory Capacity 25 | 8 8 25 8 20 20 20 20 Average Capacity 15 | 7 8 8 8 8 17 20 19 Most Carried 20 | 7 8 8 8 9 20 20 20 Average Carried 14 | 4 7 7 7 7 15 19 19 Final Capacity 20 | 8 8 8 8 10 20 20 15 Final Carried 20 | 6 8 8 8 8 20 20 15 Class Distribution -------------------- 37% | Commander-Tank 18% | Mutant 16% | Scavenger-Tank 12% | Scavenger-Gunner 7% | Commander-Mutant Dominant Class ---------------- Mutant | -10/Materials Mutant | -10/Mines Scavenger-Tank | -9/Materials Scavenger-Gunner | -9/Storage Scavenger-Gunner | -9/Garrison Scavenger-Tank | -9/Recycling Commander-Tank | -9/Scraptown Resources | -11 -10 -10 -9 -9 -9 -9 -9 ----------- Run | Yrd Mat Min Mat Sto Gar Rec Scr Matter Collected 1559 | 260 10 113 223 575 201 84 93 Remotely . | . . . . . . . . Salvage Created 3288 | 129 152 288 475 1094 640 469 41 Parts 232 | 18 10 13 32 79 42 36 2 Haulers Intercepted 1 | . . . . 1 . . . Recyclers Shooed 4 | . 1 . 2 . . 1 . Parts Field Recycled . | . . . . . . . . Retrieved Matter . | . . . . . . . . Parts Self-Destructed . | . . . . . . . . Prevented . | . . . . . . . . Parts Restored . | . . . . . . . . Kills | -11 -10 -10 -9 -9 -9 -9 -9 ------- Run | Yrd Mat Min Mat Sto Gar Rec Scr Combat Hostiles Destroyed 75 | . 5 11 12 21 17 8 1 Melee 1 | . . . . . . . 1 Guns 45 | . 5 10 12 18 . . . Cannons 25 | . . . . 2 15 8 . Classes Destroyed 14 | 1 3 . 2 6 1 . 1 Worker 1 | . . . . 1 . . . Builder 4 | . . . . 2 . 2 . Tunneler 6 | 6 . . . . . . . Hauler 1 | . . . . 1 . . . Recycler 3 | . . . 2 . . 1 . Operator 1 | . . . . 1 . . . Watcher 2 | . 1 . . 1 . . . Swarmer 27 | . 3 9 8 3 3 1 . Grunt 25 | . 2 2 2 8 7 4 . Brawler 2 | . . . . 1 1 . . Duelist 1 | . . . . 1 . . . Sentry 16 | . . . 2 8 3 3 . Programmer 3 | . . . . . 3 . . Bolteater 1 | . . . . . . . 1 Best Kill Streak 10 | 2 3 4 9 10 3 6 1 Combat Bots Only 9 | . 3 4 9 6 3 5 1 Max Kills in Single Turn 2 | 1 2 1 2 2 1 2 1 Gunslinging 1 | . 1 . 1 . . . . Exploded . | . . . . . . . . Melee 1 | . . . . . . . 1 Uniques/NPCs Destroyed . | . . . . . . . . Combat | -11 -10 -10 -9 -9 -9 -9 -9 -------- Run | Yrd Mat Min Mat Sto Gar Rec Scr Hostile Shots Fired 401 | . 24 78 52 110 111 17 9 Missed 100 | . 8 18 12 27 29 4 2 Hits 301 | . 16 60 40 83 82 13 7 Melee 12 | . . . . 5 . . 7 Projectile 289 | . 16 60 40 78 82 13 . Critical Strikes 13 | . . 1 1 5 5 . 1 Damage Taken 3654 | . 141 578 387 1256 992 171 129 Core 605 | . 39 145 74 97 126 40 84 Absorbed by Shields . | . . . . . . . . Core Remaining (%) 63 | 100 . 26 . . . . . Volleys Fired 237 | 15 15 45 34 71 46 11 . Largest 3 | 2 2 2 3 3 3 3 . Hottest 204 | 90 90 90 63 204 204 204 . Shots Fired 540 | 30 30 75 102 160 113 30 . Gun 374 | 30 30 75 102 137 . . . Cannon 166 | . . . . 23 113 30 . Launcher . | . . . . . . . . Special . | . . . . . . . . Kinetic 242 | . . 3 102 137 . . . Thermal 298 | 30 30 72 . 23 113 30 . Explosive . | . . . . . . . . Electromagnetic . | . . . . . . . . Robot Hit Streak 23 | 4 4 10 10 23 12 8 . Robot Miss Streak 5 | 4 2 4 4 4 5 4 . Penetration Max . | . . . . . . . . Secondary Targets 5 | . 1 2 2 . . . . Max Gunslinging Chain 1 | . 1 1 1 . . . . Shots Hit Robots 330 | 16 16 46 67 107 58 17 3 Core Hits 130 | 7 9 14 28 42 17 11 2 Critical Kills 3 | . . . . 1 2 . . Critical Parts Destroyed . | . . . . . . . . Critical Strikes 8 | . 1 3 . 1 2 . 1 Burn 4 | . 1 3 . . . . . Meltdown 3 | . . . . 1 2 . . Impale 1 | . . . . . . . 1 Melee Attacks 9 | . . . . . . . 9 Impact . | . . . . . . . . Slashing . | . . . . . . . . Piercing 9 | . . . . . . . 9 Sneak Attacks . | . . . . . . . . Combat Hostiles . | . . . . . . . . Follow-up Attacks . | . . . . . . . . Damage Inflicted 4923 | 194 199 550 582 1569 1368 406 55 Guns 2826 | 194 199 548 582 1303 . . . Cannons 2040 | . . . . 266 1368 406 . Explosions . | . . . . . . . . Melee 55 | . . . . . . . 55 Ramming 2 | . . 2 . . . . . Kinetic 1905 | . . 20 582 1303 . . . Thermal 2961 | 194 199 528 . 266 1368 406 . Explosive . | . . . . . . . . Electromagnetic . | . . . . . . . . Impact . | . . . . . . . . Slashing . | . . . . . . . . Piercing 55 | . . . . . . . 55 Highest Corruption 6 | . . . . 4 6 6 . Average Corruption 5 | . . . . 4 5 6 . Corruption Purged . | . . . . . . . . Corruption Blocked . | . . . . . . . . Effects 70 | . . . . 5 28 37 . Message Errors 13 | . . . . 1 4 8 . Matter Fused 22 | . . . . 1 8 13 . Heat Flow Errors 6 | . . . . . 2 4 . Energy Discharges 8 | . . . . 1 3 4 . Data Loss (minor) 11 | . . . . 2 5 4 . Data Loss (major) 1 | . . . . . . 1 . Misfires 5 | . . . . . 2 3 . Alerts 2 | . . . . . 2 . . Weapon Failures 2 | . . . . . 2 . . Overload Shots . | . . . . . . . . Overflow Damage 33 | . . . . . 33 . . Projectiles 33 | . . . . . 33 . . Explosions . | . . . . . . . . Melee . | . . . . . . . . Knockbacks . | . . . . . . . . Impact . | . . . . . . . . Kinetic . | . . . . . . . . Secondary . | . . . . . . . . Self-Inflicted Damage . | . . . . . . . . Shots . | . . . . . . . . Rammed 2 | . . 2 . . . . . Targets Rammed 2 | . . 2 . . . . . Kicked . | . . . . . . . . Crushed . | . . . . . . . . Highest Temperature 352 | 60 162 352 7 309 284 230 . Average Temperature 79 | 26 60 140 3 42 86 100 . Received Heat Transfer 1017 | . 30 171 63 432 258 63 . Siege Activations . | . . . . . . . . Martial Activations . | . . . . . . . . Shielding Activations . | . . . . . . . . Robots Disrupted . | . . . . . . . . Combat Hostiles . | . . . . . . . . Robots Corrupted . | . . . . . . . . Combat Hostiles . | . . . . . . . . Parts Fried . | . . . . . . . . Impact Corruptions . | . . . . . . . . Robots Melted 4 | . . 1 . 1 2 . . Combat Hostiles 4 | . . 1 . 1 2 . . Parts Melted 11 | . 1 2 . 3 3 2 . Heat Transferred 6252 | 521 607 1646 . 481 2257 740 . Parts Sabotaged . | . . . . . . . . Parts Stolen . | . . . . . . . . Parts Stripped . | . . . . . . . . Power Chain Reactions . | . . . . . . . . Alert | -11 -10 -10 -9 -9 -9 -9 -9 ------- Run | Yrd Mat Min Mat Sto Gar Rec Scr Maximum Alert Level 3 | . . . 1 1 3 1 . Low Security (%) 53 | 100 100 100 99 58 . 14 . Level 1 35 | . . . . 41 35 85 . Level 2 7 | . . . . . 40 . . Level 3 4 | . . . . . 23 . . Level 4 . | . . . . . . . . Level 5 . | . . . . . . . . High Security . | . . . . . . . . Max Security . | . . . . . . . . Peak Influence 714 | 5 80 120 208 350 714 361 . Initial 321 | . . . 33 37 200 321 . Average 203 | 1 17 34 106 180 491 270 . Influence Increases 2455 | 30 152 265 320 637 534 517 . Destroy 0b10 Robot/C 1580 | . 100 220 240 420 340 260 . Destroy 0b10 Robot/NC 130 | 30 5 5 10 30 . 50 . Destroy Leader 246 | . 12 40 50 134 10 . . Allied During Kill 35 | . . . . . . 35 . Successful Hack 95 | . 20 . 5 6 14 50 . Select Force Hacks 90 | . . . . . . 90 . Disable Machine 15 | . . . . 15 . . . Anti-Garrison Action 100 | . . . . . 100 . . Destroy Structure 59 | . . . . 2 25 32 . Lose Combat Pursuer 105 | . 15 . 15 30 45 . . Influence Decreases 2455 | 30 152 177 319 418 128 931 300 Entered New Map 908 | . . . 55 52 108 393 300 Time Decay 1385 | 30 152 157 254 294 . 498 . Lost Part 122 | . . 20 10 72 20 . . Lost Ally 40 | . . . . . . 40 . Squads Dispatched 5 | . . . . 5 . . . Investigation . | . . . . . . . . Extermination . | . . . . . . . . Reinforcement 2 | . . . . 2 . . . Assault . | . . . . . . . . Garrison 3 | . . . . 3 . . . Intercept . | . . . . . . . . Searches Triggered . | . . . . . . . . Construction Impeded . | . . . . . . . . Haulers Reinforced . | . . . . . . . . Active Scanning Responses . | . . . . . . . . Cargo Convoy Interrupts . | . . . . . . . . Stealth | -11 -10 -10 -9 -9 -9 -9 -9 --------- Run | Yrd Mat Min Mat Sto Gar Rec Scr Distress Signals 9 | . 2 . 3 3 . . 1 Communications Jammed . | . . . . . . . . Distress Signals . | . . . . . . . . Times Spotted 92 | . 9 11 15 28 17 8 4 Peak Tracking Total 6 | . 3 3 6 6 5 5 4 Tactical Retreats 5 | . 1 . 1 1 1 . 1 Traps | -11 -10 -10 -9 -9 -9 -9 -9 ------- Run | Yrd Mat Min Mat Sto Gar Rec Scr Traps Triggered 3 | . 1 . . 1 1 . . Indirectly . | . . . . . . . . Trap Hack Attempts . | . . . . . . . . Triggered . | . . . . . . . . Disarmed . | . . . . . . . . Reprogrammed . | . . . . . . . . Reused . | . . . . . . . . Traps Extracted . | . . . . . . . . Installed . | . . . . . . . . Triggered . | . . . . . . . . Machines | -11 -10 -10 -9 -9 -9 -9 -9 ---------- Run | Yrd Mat Min Mat Sto Gar Rec Scr Machines Disabled 6 | . . . . 1 2 . 3 Max in Single Turn 1 | . . . . 1 1 . 1 Garrison Relay 2 | . . . . . 2 . . Machines Repaired . | . . . . . . . . Machines Dismantled . | . . . . . . . . Machines Sabotaged . | . . . . . . . . Overloaded Fab Kills . | . . . . . . . . Hacking | -11 -10 -10 -9 -9 -9 -9 -9 --------- Run | Yrd Mat Min Mat Sto Gar Rec Scr Machines Accessed 22 | . 6 . 2 2 1 11 . Terminals 14 | . 6 . 1 1 1 5 . Fabricators . | . . . . . . . . Repair Stations . | . . . . . . . . Recycling Units 7 | . . . 1 . . 6 . Scanalyzers . | . . . . . . . . Garrison Access 1 | . . . . 1 . . . Total Hacks 65 | . 20 . 7 4 1 33 . Successful 34 | . 9 . 3 2 1 19 . Failed 30 | . 11 . 4 2 . 13 . Catastrophic 4 | . 2 . 1 . . 1 . Database Lockouts 1 | . . . . . . 1 . Manual 48 | . 18 . 6 3 . 21 . Terminals 46 | . 20 . 6 3 1 16 . Fabricators . | . . . . . . . . Repair Stations . | . . . . . . . . Recycling Units 18 | . . . 1 . . 17 . Scanalyzers . | . . . . . . . . Garrison Access 1 | . . . . 1 . . . Terminal Hacks 7 | . 2 . . 1 1 3 . Robot Analysis 1 | . 1 . . . . . . Prototype ID Bank 2 | . . . . . . 2 . Emergency Access Points 1 | . . . . . 1 . . Terminal Index 1 | . 1 . . . . . . Zone Layout 2 | . . . . 1 . 1 . Fabricator Hacks . | . . . . . . . . Repair Station Hacks . | . . . . . . . . Recycling Unit Hacks 7 | . . . 1 . . 6 . Retrieve Components 7 | . . . 1 . . 6 . Scanalyzer . | . . . . . . . . Garrison Access Hacks 1 | . . . . 1 . . . Unlock Access 1 | . . . . 1 . . . Unauthorized Hacks 19 | . 7 . 2 . . 10 . Terminals 16 | . 7 . 2 . . 7 . Botnet 5 | . 2 . 1 . . 2 . Skim 11 | . 5 . 1 . . 5 . Fabricators . | . . . . . . . . Repair Stations . | . . . . . . . . Recycling Units 3 | . . . . . . 3 . Tunnel 3 | . . . . . . 3 . Scanalyzers . | . . . . . . . . Garrison Access . | . . . . . . . . Data Cores Recovered . | . . . . . . . . Used . | . . . . . . . . Hacking Detections 14 | . 5 . 1 1 . 7 . Full Trace Events 1 | . . . . . . 1 . Feedback Events . | . . . . . . . . Feedback Blocked . | . . . . . . . . Robot Schematics Acquired . | . . . . . . . . Robots Built . | . . . . . . . . Authchips . | . . . . . . . . Time . | . . . . . . . . Total Robot Build Rating . | . . . . . . . . Part Schematics Acquired 1 | . . . . . . . 1 Parts Built . | . . . . . . . . Authchips . | . . . . . . . . Time . | . . . . . . . . Total Part Build Rating . | . . . . . . . . Part Studies Acquired . | . . . . . . . . Parts Repaired . | . . . . . . . . Time . | . . . . . . . . Parts Recycled . | . . . . . . . . Recycled Matter . | . . . . . . . . Retrieved Matter . | . . . . . . . . Retrieved Components 30 | . . . 9 . . 21 . Parts Scanalyzed . | . . . . . . . . Part Schematics Acquired . | . . . . . . . . Parts Damaged . | . . . . . . . . Bothacking | -11 -10 -10 -9 -9 -9 -9 -9 ------------ Run | Yrd Mat Min Mat Sto Gar Rec Scr Used RIF Installer 1 | . . . . . 1 . . Robots Hacked . | . . . . . . . . Non-combat . | . . . . . . . . Combat . | . . . . . . . . Robot Hacks Applied . | . . . . . . . . Relay Couplers Released 9 | . . . . . 9 . . Machine Destruction 9 | . . . . . 9 . . Fabnet Peak Effective % . | . . . . . . . . Robots Rewired 15 | . . . . . . 15 . Allies Hacked . | . . . . . . . . Hacks Repelled . | . . . . . . . . Allies | -11 -10 -10 -9 -9 -9 -9 -9 -------- Run | Yrd Mat Min Mat Sto Gar Rec Scr Total Allies 15 | . . . . . . 15 . Largest Group 13 | . . . . . . 13 13 Highest-Rated Group 169 | . . . . . . 169 163 Highest-Rated Ally 34 | . . . . . . 34 34 Total Orders 13 | . . . . . . . 13 STAY 12 | . . . . . . . 12 TUNNEL 1 | . . . . . . . 1 Ally Attacks 23 | . . . . . . 5 18 Total Damage 1110 | . . . . . . 674 436 Kills 11 | . . . . . . 9 2 Allies Corrupted . | . . . . . . . . Allies Melted . | . . . . . . . . Intel | -11 -10 -10 -9 -9 -9 -9 -9 ------- Run | Yrd Mat Min Mat Sto Gar Rec Scr Active Infowar (turns) 987 | 12 599 376 . . . . . Sensors 2 | . . 2 . . . . . Seismic 985 | 12 599 374 . . . . . Robot Analysis Total 1 | . 1 . . . . . . Derelict Logs Recovered 1 | . . 1 . . . . . Drone Launches . | . . . . . . . . Drone Recoveries . | . . . . . . . . Exploration | -11 -10 -10 -9 -9 -9 -9 -9 ------------- Run | Yrd Mat Min Mat Sto Gar Rec Scr Turns Passed 7529 | 255 599 576 556 647 830 1335 2731 Spaces Moved 3043 | 131 328 257 226 231 299 463 1108 Core 17 | 17 . . . . . . . Treads 3026 | 114 328 257 226 231 299 463 1108 Legs . | . . . . . . . . Wheels . | . . . . . . . . Hover . | . . . . . . . . Flight . | . . . . . . . . Fastest Speed 50 | 50 160 160 160 160 160 240 160 Average Speed 206 | 145 160 160 192 162 209 240 236 Slowest Speed 240 | 160 160 160 240 240 240 240 240 Overloaded Moves . | . . . . . . . . Propulsion Burnouts . | . . . . . . . . Robots Hopped . | . . . . . . . . Potential Cave-ins . | . . . . . . . . Cave-ins Triggered . | . . . . . . . . Exploration Rate (%) 49 | 7 63 61 19 41 50 99 55 Regions Visited 7 Branch Regions 4 Pre-discovered Areas 6 | . . 1 . . . 5 . Known Exits Taken 2 | . . . . 1 . 1 . Unknown Exits Taken 4 | 1 1 1 1 . . . . Scrap Searched 8 | . . . . . . . 8 Spaces Dug 2 | . . . . . . . 2 Terrain Destroyed 2 | . . . . . . . 2 Melee 2 | . . . . . . . 2 Projectile . | . . . . . . . . AOE . | . . . . . . . . Terrain Rammed . | . . . . . . . . Walls Destroyed . | . . . . . . . . Machines Disabled . | . . . . . . . . Actions | -11 -10 -10 -9 -9 -9 -9 -9 --------- Run | Yrd Mat Min Mat Sto Gar Rec Scr Total 3849 | 165 374 349 291 378 417 668 1207 Wait 206 | . 22 21 8 19 17 70 49 Move 3037 | 130 327 256 225 231 298 462 1108 Hop . | . . . . . . . . Pick Up 81 | 13 5 6 5 13 24 2 13 Fast Attach 12 | . 1 1 2 5 1 . 2 Attach 22 | 7 . 2 2 7 1 . 3 Detach 4 | . . . . . . 3 1 Swap 48 | . 1 8 6 14 13 2 4 Drop 78 | . 3 8 9 18 17 5 18 Fire 237 | 15 15 45 34 71 46 11 . Melee 9 | . . . . . . . 9 Ram . | . . . . . . . . Kick . | . . . . . . . . Crush 2 | . . 2 . . . . . Escape Stasis . | . . . . . . . . Rewire 113 | . . . . . . 113 . Trap . | . . . . . . . . Miscellaneous . | . . . . . . . . Route ------- -11/Scrapyard -10/Materials (discovered 2 exits: *Mat / [*Min]) -10/Mines (discovered 2 exits: *Mat x2) -9/Materials -9/Storage -9/Garrison -9/Recycling (discovered 2 exits: [*Fac] / *Scr) -9/Scraptown (discovered 1 exit: [*Fac]) History --------- Turn | Location | Event 8 | -11/Scrapyard | Discovered new exit (range 15) 256 | -11/Scrapyard | Entered Materials 303 | -10/Materials | Build established: Mutant 447 | -10/Materials | Discovered new exit (range 12) 698 | -10/Materials | Discovered new exit (range 5) 756 | -10/Materials | Derelicts attacked the area 855 | -10/Materials | Entered Mines 919 | -10/Mines | Discovered new exit (range 12) 1150 | -10/Mines | Received a Rocket Launcher from a helpful Derelict 1178 | -10/Mines | Learned location of Storage (-9) 1182 | -10/Mines | Core integrity fell below 50% 1306 | -10/Mines | Discovered new exit (range 8) 1320 | -10/Mines | Found a damaged Exp. Sensor Array with a note attached 1323 | -10/Mines | Found Prototype Device 1332 | -10/Mines | Learned 2 Materials zone layouts 1372 | -10/Mines | Identified Exp. Sensor Array 1431 | -10/Mines | Entered Materials 1431 | -9/Materials | Evolved 2 slots: Utility x1, Weapon x1 1647 | -9/Materials | Destroyed 9 combat bots 1829 | -9/Materials | Discovered new exit (range 12) 1922 | -9/Materials | Build established: Scavenger-Tank 1987 | -9/Materials | Entered Storage 2290 | -9/Storage | Garrison activated, responded to threat 2457 | -9/Storage | Lost 5 parts (1n2u2w) 2634 | -9/Storage | Identified exit to Garrison 2634 | -9/Storage | Entered Garrison 2672 | -9/Garrison | Triggered checkpoint 2700 | -9/Garrison | Garrison Relay disabled 2770 | -9/Garrison | Build established: Scavenger-Gunner 2771 | -9/Garrison | Installed Relay Interface Framework 2781 | -9/Garrison | Core integrity fell below 50% 2862 | -9/Garrison | Garrison Relay disabled 3156 | -9/Garrison | Triggered checkpoint 3448 | -9/Garrison | Discovered new exit (range 8) 3464 | -9/Garrison | Entered Recycling 3592 | -9/Recycling | Build established: Scavenger-Tank 3663 | -9/Recycling | Core integrity fell below 20% 3708 | -9/Recycling | Discovered new exit (range 7) 4399 | -9/Recycling | Build established: Commander-Tank 4533 | -9/Recycling | Learned Materials trap positions 4642 | -9/Recycling | Learned Materials trap positions 4644 | -9/Recycling | Learned location of 2 exits from Materials 4675 | -9/Recycling | Learned location of 3 exits from Materials 4695 | -9/Recycling | Scanned before Scraplab entrance 4706 | -9/Recycling | Identified exit to Scraptown 4732 | -9/Recycling | Entered Scraplab 4799 | -9/Recycling | Entered Scraptown 4799 | -9/Scraptown | Accompanied by 13 allies 4799 | -9/Scraptown | System corruption cleaned by C-Scrubber 5241 | -9/Scraptown | Visited Bundlers 5713 | -9/Scraptown | Discovered new exit (range 13) 5854 | -9/Scraptown | Visited Shadow of the Wyrm 5902 | -9/Scraptown | Visited Red Mages 6056 | -9/Scraptown | Visited IN-MT5's Study 6087 | -9/Scraptown | Visited The Evicted 7373 | -9/Scraptown | Build established: Commander-Mutant 7395 | -9/Scraptown | Visited CPS Storage 7496 | -9/Scraptown | Attacked by Scraptown defenders 7530 | -9/Scraptown | Destroyed by W6-ECL(x) with Makeshift Spear Last Messages --------------- 07215_ Dropped Adv. Heat Sink. 07215_ Acquired Lrg. Storage Unit. 07216_ Dropped Lgt. Treads. 07218_ Dropped Relay Coupler [Duelist]. 07219_ Dropped Relay Coupler [NC]. 07219_ Acquired Lgt. Treads. 07395_ LOCAL NARROWCAST: CPS Storage. 07402_ Acquired CPS Tube. 07466_ LOCAL NARROWCAST: Specimen 142. 07496_ IN-MT5's Safe breached. 07496_ ANNOUNCEMENT: Intruder alert! Defend Scraptown! 07499_ BF-6TD(r) follow-up attacks with Ripteeth. 07499_ Destroyed Ripteeth. 07501_ Extracted schematic archive: IN-MT5's Pitchfork "Insurrection". 07511_ Machine disabled. 07512_ HW-GKU(r) follow-up attacks with Ripteeth. 07515_ HW-GKU(r) destroyed. 07524_ Critical hit (Impale). 07525_ W6-ECL(x) suffers critical hit (Impale). 07528_ CPS Tube destroyed. Map ----- +----------------------------------------------------+ | | | | | ?????????????????????????????????????????????????? | | ?????????????#########???????????????????????????? | | ?????????????#"" ##??????????????????????????? | | ?????????????#" < #?##########?####????#?????? | | ??#######????#"" ##?"""""""""#"""""??""#?????? | | ??"""""""#???##### #?#" "#" ?? "??????? | | ?#"" ""#???????# #?#" """ "??????? | | ?#"" ""#???????# #?#" "#" "" "#?????? | | ?#""" ""#???????# #?#" """ "#" " "#?????? | | ?#"" ""#??????## ###" "#" "#?????? | | ##""" """######## ##"""""" ""#"" """"""#?????? | | #?????? | | #?????? | | #?????? | | ##### ########### ##########"" """"###???????? | | ????# #?????????## ##????????#" *%"#?????????? | | ????" "?????#????# !%#########?#" !|""#?????????? | | ??? " " ????? ??# =""""""""#?#" """#?????????? | | ??" "??### ### ""#?#" """#?????????? | | ?? " " ??#"" """ "#?#"""""""#?????????? | | ?"""" """"?#" """ " ""#?#########?????????? | | ##### ######" " """"""""#???????????????????? | | ?"""" """"?#" ##"" ####???????????????????? | | ? " " ?#" "" " #?##@#########"???"""???????? | | ??" "??#" " #??#x#"""""""#""? " "??????? | | ??? " " ???#"""""" #??#! " "#"" " ""????? | | ????" "????####### #??###" "#"" "" "????? | | ????# #??????????# #??# " ""#" " "????? | | ##### ############ #??# " """#" "#???? | | #??# " ""#" " "#???? | | #??# " "#?? ""#???? | | ################## #??#""" "#???? " """#???? | | ????????????????# #??# #?????? ""#???? | | ???????????????### ######### ####### ####?? | | ????????######?# #?? | | ??????###" # #?? | | ??????# # #?? | | ???????#" #?? | | ??????# # #?? | | ??????# # ############ #### #?? | | ??????##" ?# #????????? ?# #?? | | ??????# ?# #??????? ## #?? | | ??????###" ??# #?????? "## #?? | | ????????#####??# #????" """"" "## #?? | | ???????????????# #???" """"" "## #?? | | ???????????????# #??????""""" "## ### | | ???????????????# #?????????? "?# ""# | | ???############# #??????????## #?# """ | +----------------------------------------------------+ Best States ------------- Heat Dissipation 56 Energy Generation 12 Energy Capacity 265 Matter Stores 300 Matter Capacity 300 Sight Range 16 Terrain Scan Density 10 Armor Coverage 150 Evasion (%) 50 Recoil Reduction 2 Authchip Count 1 Item Schematics ----------------- IN-MT5's Pitchfork "Insurrection" | -9/Scraptown | Archive Robot Schematics ------------------ None Fabricated ------------ Nothing Repaired ---------- Nothing Studied --------- None Alien Tech Used ----------------- None Achievements -------------- None Challenges ------------ None Game ------ Seed SapperDroneKit Manual? 0 Play Time 00:32:05 Cumulative 424.8 hours Start 2025.10.26 @ 05:16:37 End 2025.10.26 @ 05:52:46 Sessions 1 Manual Loads 0 Difficulty Rogue Special Mode None Game No. 553 Rogue 553 Adventurer 0 Explorer 0 Win Type - Total 12 Types 6/0/1/2/1/0/2/0/0/0 Lore% 89 Gallery% 84 Achievement% 53 Wizard Run 0 Options --------- Layout 0 ASCII 0 Keyboard 0 Movement Mouse Keybinds 0 Fullscreen 1 Font 24/Terminus Map View 76x50 Zoom Use 0% Tactical HUD 1 Map Filters NONE Filters NONE Steam 1 RUN: 44bc050c-4f18-497e-9268-c9485cf317fa